[Event "Titled Tuesday Blitz November 14 Early 2023"]
[White "Kornyukov, Alexey"]
[Black "Bettalli, Francesco"]
[WhiteFideId "4150457"]
[BlackFideId "2816453"]
[WhiteElo "2335"]
[BlackElo "2542"]
[Result "1-0"]
[Round "2"]
[TimeControl "180+1"]
[Date "2023.11.14"]
[WhiteClock "0:00:20"]
[BlackClock "0:01:45"]
[Board "161"]

1. e4 {[%clk 0:03:00]}  g6 {[%clk 0:02:56]} 2. d4 {[%clk 0:02:54]}  c6 {[%clk 0:02:53]} 3. Nc3 {[%clk 0:02:53]}  d5 {[%clk 0:02:53]} 4. e5 {[%clk 0:02:53]}  Bg7 {[%clk 0:02:54]} 5. Nf3 {[%clk 0:02:53]}  h5 {[%clk 0:02:54]} 6. Bf4 {[%clk 0:02:53]}  Nh6 {[%clk 0:02:54]} 7. Bd3 {[%clk 0:02:53]}  Bf5 {[%clk 0:02:55]} 8. Qd2 {[%clk 0:02:49]}  Nd7 {[%clk 0:02:54]} 9. O-O-O {[%clk 0:02:48]}  Nf8 {[%clk 0:02:54]} 10. Ng5 {[%clk 0:02:41]}  e6 {[%clk 0:02:53]} 11. h3 {[%clk 0:02:33]}  Bxd3 {[%clk 0:02:52]} 12. Qxd3 {[%clk 0:02:32]}  h4 {[%clk 0:02:52]} 13. Qf3 {[%clk 0:02:20]}  Nf5 {[%clk 0:02:52]} 14. g4 {[%clk 0:02:07]}  hxg3 {[%clk 0:02:52]} 15. fxg3 {[%clk 0:02:06]}  Bh6 {[%clk 0:02:53]} 16. h4 {[%clk 0:02:00]}  Nh7 {[%clk 0:02:42]} 17. Nxf7 {[%clk 0:01:18]}  Bxf4+ {[%clk 0:02:36]} 18. Qxf4 {[%clk 0:01:18]}  Kxf7 {[%clk 0:02:35]} 19. g4 {[%clk 0:01:17]}  g5 {[%clk 0:02:33]} 20. Qf2 {[%clk 0:01:05]}  gxh4 {[%clk 0:02:34]} 21. gxf5 {[%clk 0:01:04]}  Qg5+ {[%clk 0:02:34]} 22. Kb1 {[%clk 0:01:03]}  exf5 {[%clk 0:02:32]} 23. Rdg1 {[%clk 0:01:01]}  Qe7 {[%clk 0:02:18]} 24. Qxf5+ {[%clk 0:01:00]}  Ke8 {[%clk 0:02:19]} 25. Rg6 {[%clk 0:00:50]}  Nf8 {[%clk 0:02:19]} 26. Rf6 {[%clk 0:00:48]}  Qg7 {[%clk 0:02:02]} 27. e6 {[%clk 0:00:36]}  Rg8 {[%clk 0:02:00]} 28. Qh5+ {[%clk 0:00:32]}  Kd8 {[%clk 0:01:52]} 29. Rf7 {[%clk 0:00:29]}  Qg2 {[%clk 0:01:46]} 30. e7+ {[%clk 0:00:28]}  Ke8 {[%clk 0:01:41]} 31. exf8=Q+ {[%clk 0:00:25]}  Rxf8 {[%clk 0:01:41]} 32. Re1+ {[%clk 0:00:22]}  Kd8 {[%clk 0:01:41]} 33. Rxf8+ {[%clk 0:00:22]}  Kc7 {[%clk 0:01:42]} 34. Rxa8 {[%clk 0:00:22]}  h3 {[%clk 0:01:43]} 35. Qf7+ {[%clk 0:00:21]}  Kb6 {[%clk 0:01:43]} 36. Na4+ {[%clk 0:00:20]}  Ka6 {[%clk 0:01:43]} 37. Nc5+ {[%clk 0:00:20]}  Kb5 {[%clk 0:01:44]} 38. Qxb7+ {[%clk 0:00:20]}  Kc4 {[%clk 0:01:44]} 39. Qb3+ {[%clk 0:00:20]}  Kxd4 {[%clk 0:01:45]} 40. Qc3# {[%clk 0:00:20]} 1-0


[Site "https://www.chess.com"]

[Event "Titled Tuesday Blitz November 14 Early 2023"]
[White "komogro"]
[Black "ChainedDowntohell"]
[WhiteElo "2332"]
[BlackElo "2537"]
[Result "0-1"]
[Round "2"]
[TimeControl "180+1"]
[Date "2023.11.14"]
[WhiteClock "0:00:00"]
[BlackClock "0:00:03"]
[Board "163"]

1. Nf3 {[%clk 0:03:00]}  g6 {[%clk 0:02:55]} 2. d4 {[%clk 0:02:59]}  Bg7 {[%clk 0:02:55]} 3. c4 {[%clk 0:02:49]}  c5 {[%clk 0:02:55]} 4. Nc3 {[%clk 0:02:48]}  cxd4 {[%clk 0:02:53]} 5. Nxd4 {[%clk 0:02:49]}  Nc6 {[%clk 0:02:53]} 6. Nc2 {[%clk 0:02:41]}  e6 {[%clk 0:02:46]} 7. g3 {[%clk 0:02:39]}  h5 {[%clk 0:02:39]} 8. h4 {[%clk 0:02:36]}  d5 {[%clk 0:02:25]} 9. cxd5 {[%clk 0:02:34]}  exd5 {[%clk 0:02:26]} 10. Nxd5 {[%clk 0:02:24]}  Nge7 {[%clk 0:02:04]} 11. Bg2 {[%clk 0:02:21]}  Nxd5 {[%clk 0:01:57]} 12. Qxd5 {[%clk 0:02:18]}  O-O {[%clk 0:01:42]} 13. O-O {[%clk 0:02:13]}  Bf5 {[%clk 0:01:40]} 14. Qxd8 {[%clk 0:01:50]}  Rfxd8 {[%clk 0:01:38]} 15. e4 {[%clk 0:01:50]}  Be6 {[%clk 0:01:29]} 16. Bg5 {[%clk 0:01:47]}  Rd7 {[%clk 0:01:12]} 17. Rad1 {[%clk 0:01:38]}  Bxb2 {[%clk 0:01:02]} 18. Rxd7 {[%clk 0:01:34]}  Bxd7 {[%clk 0:01:03]} 19. Rb1 {[%clk 0:01:33]}  Bg7 {[%clk 0:00:35]} 20. Rxb7 {[%clk 0:01:32]}  Be6 {[%clk 0:00:35]} 21. a4 {[%clk 0:01:17]}  Na5 {[%clk 0:00:32]} 22. Rc7 {[%clk 0:01:13]}  Bb3 {[%clk 0:00:20]} 23. Ne3 {[%clk 0:00:30]}  Be5 {[%clk 0:00:16]} 24. Re7 {[%clk 0:00:29]}  f6 {[%clk 0:00:11]} 25. Nd5 {[%clk 0:00:24]}  Rf8 {[%clk 0:00:04]} 26. Bh6 {[%clk 0:00:18]}  Rf7 {[%clk 0:00:03]} 27. Re8+ {[%clk 0:00:15]}  Kh7 {[%clk 0:00:04]} 28. Be3 {[%clk 0:00:16]}  Bxa4 {[%clk 0:00:03]} 29. f4 {[%clk 0:00:14]}  Bxe8 {[%clk 0:00:03]} 30. fxe5 {[%clk 0:00:13]}  fxe5 {[%clk 0:00:04]} 31. Bf1 {[%clk 0:00:13]}  a6 {[%clk 0:00:03]} 32. Bxa6 {[%clk 0:00:12]}  Bc6 {[%clk 0:00:03]} 33. Bd3 {[%clk 0:00:12]}  Nb3 {[%clk 0:00:03]} 34. Bc4 {[%clk 0:00:12]}  Rb7 {[%clk 0:00:02]} 35. Bg5 {[%clk 0:00:09]}  Na5 {[%clk 0:00:02]} 36. Nf6+ {[%clk 0:00:09]}  Kg7 {[%clk 0:00:02]} 37. Bd5 {[%clk 0:00:07]}  Bxd5 {[%clk 0:00:02]} 38. exd5 {[%clk 0:00:07]}  Nc4 {[%clk 0:00:03]} 39. Ne4 {[%clk 0:00:07]}  Rb6 {[%clk 0:00:02]} 40. Kf2 {[%clk 0:00:06]}  Nd6 {[%clk 0:00:01]} 41. Nc5 {[%clk 0:00:04]}  Rb5 {[%clk 0:00:02]} 42. Ne6+ {[%clk 0:00:04]}  Kg8 {[%clk 0:00:02]} 43. Nc7 {[%clk 0:00:02]}  Rc5 {[%clk 0:00:03]} 44. Ne6 {[%clk 0:00:01]}  Rxd5 {[%clk 0:00:03]} 45. Ke3 {[%clk 0:00:02]}  Nf5+ {[%clk 0:00:02]} 46. Ke4 {[%clk 0:00:01]}  Ra5 {[%clk 0:00:03]} 47. Nc7 {[%clk 0:00:00]}  Nxg3+ {[%clk 0:00:03]} 0-1


[Site "https://www.chess.com"]

[Event "Titled Tuesday Blitz November 14 Early 2023"]
[White "Kochiev, Ivan"]
[Black "Lopez Del Alamo, Antonio"]
[WhiteFideId "2917890"]
[BlackFideId "2227339"]
[WhiteElo "2533"]
[BlackElo "2331"]
[Result "1-0"]
[Round "2"]
[TimeControl "180+1"]
[Date "2023.11.14"]
[WhiteClock "0:01:06"]
[BlackClock "0:01:24"]
[Board "165"]

1. e4 {[%clk 0:03:00]}  c5 {[%clk 0:02:58]} 2. Nf3 {[%clk 0:03:00]}  e6 {[%clk 0:02:57]} 3. d4 {[%clk 0:03:01]}  cxd4 {[%clk 0:02:55]} 4. Nxd4 {[%clk 0:03:02]}  Nf6 {[%clk 0:02:51]} 5. Nc3 {[%clk 0:03:02]}  Nc6 {[%clk 0:02:49]} 6. a3 {[%clk 0:03:02]}  d6 {[%clk 0:02:45]} 7. Be3 {[%clk 0:02:44]}  Be7 {[%clk 0:02:44]} 8. g4 {[%clk 0:02:43]}  O-O {[%clk 0:02:42]} 9. g5 {[%clk 0:02:41]}  Nd7 {[%clk 0:02:38]} 10. h4 {[%clk 0:02:40]}  a6 {[%clk 0:02:32]} 11. Bd3 {[%clk 0:02:37]}  Qc7 {[%clk 0:02:30]} 12. f4 {[%clk 0:02:37]}  b5 {[%clk 0:02:25]} 13. f5 {[%clk 0:02:28]}  Nxd4 {[%clk 0:02:23]} 14. Bxd4 {[%clk 0:02:27]}  Ne5 {[%clk 0:02:24]} 15. f6 {[%clk 0:02:20]}  gxf6 {[%clk 0:02:21]} 16. gxf6 {[%clk 0:02:20]}  Bxf6 {[%clk 0:02:22]} 17. Rg1+ {[%clk 0:02:03]}  Kh8 {[%clk 0:02:21]} 18. Be3 {[%clk 0:01:51]}  Rb8 {[%clk 0:02:15]} 19. Qh5 {[%clk 0:01:49]}  Nxd3+ {[%clk 0:02:02]} 20. cxd3 {[%clk 0:01:49]}  Bxc3+ {[%clk 0:02:02]} 21. bxc3 {[%clk 0:01:49]}  Qxc3+ {[%clk 0:02:03]} 22. Ke2 {[%clk 0:01:50]}  d5 {[%clk 0:01:43]} 23. Rac1 {[%clk 0:01:24]}  Qb2+ {[%clk 0:01:40]} 24. Bd2 {[%clk 0:01:24]}  d4 {[%clk 0:01:24]} 25. Qh6 {[%clk 0:01:06]} 1-0


[Site "https://www.chess.com"]

[Event "Titled Tuesday Blitz November 14 Early 2023"]
[White "TimGrutter03"]
[Black "KorolDimitriy75"]
[WhiteElo "2530"]
[BlackElo "2330"]
[Result "0-1"]
[Round "2"]
[TimeControl "180+1"]
[Date "2023.11.14"]
[WhiteClock "0:00:15"]
[BlackClock "0:00:20"]
[Board "166"]

1. e4 {[%clk 0:03:00]}  c5 {[%clk 0:03:00]} 2. Nf3 {[%clk 0:02:58]}  d6 {[%clk 0:03:00]} 3. d4 {[%clk 0:02:57]}  cxd4 {[%clk 0:03:01]} 4. Qxd4 {[%clk 0:02:58]}  a6 {[%clk 0:03:00]} 5. Nc3 {[%clk 0:02:56]}  Nc6 {[%clk 0:03:01]} 6. Qd2 {[%clk 0:02:56]}  g6 {[%clk 0:03:02]} 7. b3 {[%clk 0:02:56]}  Bh6 {[%clk 0:02:58]} 8. Qd1 {[%clk 0:02:49]}  Bg7 {[%clk 0:02:59]} 9. Bb2 {[%clk 0:02:49]}  Qa5 {[%clk 0:02:23]} 10. Qd2 {[%clk 0:02:45]}  Nf6 {[%clk 0:02:22]} 11. Bd3 {[%clk 0:02:43]}  O-O {[%clk 0:02:17]} 12. a3 {[%clk 0:02:42]}  Bg4 {[%clk 0:02:17]} 13. b4 {[%clk 0:02:37]}  Qc7 {[%clk 0:02:13]} 14. O-O-O {[%clk 0:01:49]}  Ne5 {[%clk 0:02:00]} 15. Qe2 {[%clk 0:01:47]}  Rfc8 {[%clk 0:01:51]} 16. Kb1 {[%clk 0:01:40]}  Nc4 {[%clk 0:01:34]} 17. Bxc4 {[%clk 0:01:39]}  Qxc4 {[%clk 0:01:35]} 18. Qxc4 {[%clk 0:01:39]}  Rxc4 {[%clk 0:01:36]} 19. Nd2 {[%clk 0:01:14]}  Rc7 {[%clk 0:01:16]} 20. f3 {[%clk 0:01:13]}  Be6 {[%clk 0:01:16]} 21. Na4 {[%clk 0:00:55]}  Nd7 {[%clk 0:01:07]} 22. Bxg7 {[%clk 0:00:54]}  Kxg7 {[%clk 0:01:08]} 23. Nb2 {[%clk 0:00:42]}  b5 {[%clk 0:01:04]} 24. Nb3 {[%clk 0:00:37]}  Rac8 {[%clk 0:01:04]} 25. Nd4 {[%clk 0:00:37]}  Nb6 {[%clk 0:00:47]} 26. Rd3 {[%clk 0:00:31]}  Bc4 {[%clk 0:00:40]} 27. Rc3 {[%clk 0:00:26]}  Ba2+ {[%clk 0:00:38]} 28. Kxa2 {[%clk 0:00:24]}  Rxc3 {[%clk 0:00:39]} 29. Rd1 {[%clk 0:00:19]}  e5 {[%clk 0:00:32]} 30. Nb3 {[%clk 0:00:19]}  Rxc2 {[%clk 0:00:32]} 31. Na1 {[%clk 0:00:16]}  Rxg2 {[%clk 0:00:31]} 32. Rxd6 {[%clk 0:00:15]}  Nc4 {[%clk 0:00:20]} 0-1


[Site "https://www.chess.com"]

[Event "Titled Tuesday Blitz November 14 Early 2023"]
[White "Josgar05"]
[Black "Kiremitciyan, Ari"]
[BlackFideId "6373445"]
[WhiteElo "2323"]
[BlackElo "2529"]
[Result "0-1"]
[Round "2"]
[TimeControl "180+1"]
[Date "2023.11.14"]
[WhiteClock "0:01:10"]
[BlackClock "0:00:08"]
[Board "168"]

1. Nf3 {[%clk 0:03:00]}  g6 {[%clk 0:02:59]} 2. d3 {[%clk 0:02:58]}  Bg7 {[%clk 0:02:56]} 3. g3 {[%clk 0:02:58]}  e5 {[%clk 0:02:55]} 4. Bg2 {[%clk 0:02:58]}  Ne7 {[%clk 0:02:56]} 5. c4 {[%clk 0:02:58]}  O-O {[%clk 0:02:56]} 6. O-O {[%clk 0:02:57]}  c6 {[%clk 0:02:54]} 7. Nc3 {[%clk 0:02:53]}  d5 {[%clk 0:02:54]} 8. cxd5 {[%clk 0:02:54]}  cxd5 {[%clk 0:02:54]} 9. e4 {[%clk 0:02:55]}  d4 {[%clk 0:02:51]} 10. Nb1 {[%clk 0:02:55]}  Nbc6 {[%clk 0:02:49]} 11. Nbd2 {[%clk 0:02:55]}  h6 {[%clk 0:02:49]} 12. Nc4 {[%clk 0:02:54]}  b5 {[%clk 0:02:48]} 13. Ncd2 {[%clk 0:02:54]}  Be6 {[%clk 0:02:46]} 14. Nb3 {[%clk 0:02:54]}  Qd6 {[%clk 0:02:44]} 15. Bd2 {[%clk 0:02:53]}  a5 {[%clk 0:02:35]} 16. Rc1 {[%clk 0:02:53]}  a4 {[%clk 0:02:36]} 17. Nc5 {[%clk 0:02:53]}  Bxa2 {[%clk 0:02:32]} 18. h4 {[%clk 0:02:50]}  Rfc8 {[%clk 0:02:30]} 19. h5 {[%clk 0:02:48]}  g5 {[%clk 0:02:28]} 20. Bh3 {[%clk 0:02:46]}  Rc7 {[%clk 0:02:25]} 21. Nh2 {[%clk 0:02:44]}  Na5 {[%clk 0:01:50]} 22. Bb4 {[%clk 0:02:42]}  Nec6 {[%clk 0:01:45]} 23. Nb7 {[%clk 0:02:35]}  Qxb4 {[%clk 0:01:29]} 24. Nxa5 {[%clk 0:02:32]}  Rxa5 {[%clk 0:01:25]} 25. f4 {[%clk 0:02:29]}  gxf4 {[%clk 0:01:16]} 26. gxf4 {[%clk 0:02:29]}  Qd6 {[%clk 0:01:14]} 27. f5 {[%clk 0:02:28]}  Raa7 {[%clk 0:01:08]} 28. Ng4 {[%clk 0:02:27]}  f6 {[%clk 0:01:07]} 29. Nh2 {[%clk 0:02:24]}  Nb4 {[%clk 0:01:06]} 30. Nf3 {[%clk 0:02:21]}  Rxc1 {[%clk 0:01:05]} 31. Qxc1 {[%clk 0:02:22]}  Rc7 {[%clk 0:01:05]} 32. Qd1 {[%clk 0:02:20]}  Bb3 {[%clk 0:01:03]} 33. Qe1 {[%clk 0:02:09]}  Bf8 {[%clk 0:00:55]} 34. Kh1 {[%clk 0:02:07]}  Rg7 {[%clk 0:00:54]} 35. Qd2 {[%clk 0:02:05]}  Nc2 {[%clk 0:00:42]} 36. Nh4 {[%clk 0:02:04]}  Rg5 {[%clk 0:00:35]} 37. Nf3 {[%clk 0:01:59]}  Rxh5 {[%clk 0:00:27]} 38. Kg2 {[%clk 0:01:59]}  Ne3+ {[%clk 0:00:27]} 39. Kg3 {[%clk 0:02:00]}  Rxh3+ {[%clk 0:00:25]} 40. Kxh3 {[%clk 0:01:58]}  Nxf1 {[%clk 0:00:26]} 41. Qg2+ {[%clk 0:01:58]}  Kh8 {[%clk 0:00:20]} 42. Qxf1 {[%clk 0:01:57]}  Qe7 {[%clk 0:00:17]} 43. Nh4 {[%clk 0:01:57]}  Qg7 {[%clk 0:00:16]} 44. Qc1 {[%clk 0:01:54]}  Bf7 {[%clk 0:00:16]} 45. Qc6 {[%clk 0:01:48]}  Qg5 {[%clk 0:00:11]} 46. Qd7 {[%clk 0:01:44]}  Kg8 {[%clk 0:00:10]} 47. Qxb5 {[%clk 0:01:44]}  a3 {[%clk 0:00:10]} 48. bxa3 {[%clk 0:01:43]}  Bxa3 {[%clk 0:00:10]} 49. Qb8+ {[%clk 0:01:44]}  Bf8 {[%clk 0:00:11]} 50. Qb6 {[%clk 0:01:42]}  Qe3+ {[%clk 0:00:10]} 51. Kh2 {[%clk 0:01:40]}  Qf4+ {[%clk 0:00:09]} 52. Kh3 {[%clk 0:01:40]}  Qf1+ {[%clk 0:00:10]} 53. Kh2 {[%clk 0:01:40]}  Qxd3 {[%clk 0:00:07]} 54. Qxf6 {[%clk 0:01:40]}  Qxe4 {[%clk 0:00:08]} 55. Ng6 {[%clk 0:01:38]}  Qe2+ {[%clk 0:00:07]} 56. Kg3 {[%clk 0:01:33]}  Qe1+ {[%clk 0:00:06]} 57. Kh3 {[%clk 0:01:30]}  Qh1+ {[%clk 0:00:06]} 58. Kg3 {[%clk 0:01:30]}  Qg1+ {[%clk 0:00:06]} 59. Kh3 {[%clk 0:01:29]}  Qf1+ {[%clk 0:00:05]} 60. Kg3 {[%clk 0:01:29]}  Qd3+ {[%clk 0:00:05]} 61. Kh2 {[%clk 0:01:23]}  Qe2+ {[%clk 0:00:05]} 62. Kg3 {[%clk 0:01:23]}  Qe3+ {[%clk 0:00:06]} 63. Kh2 {[%clk 0:01:21]}  Qf2+ {[%clk 0:00:05]} 64. Kh3 {[%clk 0:01:20]}  Qf3+ {[%clk 0:00:06]} 65. Kh2 {[%clk 0:01:19]}  Qh5+ {[%clk 0:00:06]} 66. Kg1 {[%clk 0:01:18]}  Qg5+ {[%clk 0:00:06]} 67. Qxg5 {[%clk 0:01:16]}  hxg5 {[%clk 0:00:07]} 68. Nxe5 {[%clk 0:01:16]}  Bd6 {[%clk 0:00:05]} 69. Nf3 {[%clk 0:01:16]}  d3 {[%clk 0:00:04]} 70. Kf2 {[%clk 0:01:17]}  g4 {[%clk 0:00:04]} 71. Ng5 {[%clk 0:01:17]}  g3+ {[%clk 0:00:04]} 72. Ke3 {[%clk 0:01:17]}  Bd5 {[%clk 0:00:05]} 73. Kxd3 {[%clk 0:01:16]}  g2 {[%clk 0:00:05]} 74. Nh3 {[%clk 0:01:16]}  Bf3 {[%clk 0:00:04]} 75. Ke3 {[%clk 0:01:09]}  Bg4 {[%clk 0:00:04]} 76. Ng1 {[%clk 0:01:09]}  Bc5+ {[%clk 0:00:04]} 77. Kf4 {[%clk 0:01:10]}  Bxf5 {[%clk 0:00:03]} 78. Kg3 {[%clk 0:01:07]}  Be4 {[%clk 0:00:03]} 79. Nh3 {[%clk 0:01:08]}  Bd5 {[%clk 0:00:03]} 80. Kh2 {[%clk 0:01:07]}  Bd6+ {[%clk 0:00:03]} 81. Kg1 {[%clk 0:01:07]}  Bg3 {[%clk 0:00:03]} 82. Ng5 {[%clk 0:01:06]}  Bf4 {[%clk 0:00:03]} 83. Nh3 {[%clk 0:01:06]}  Be3+ {[%clk 0:00:03]} 84. Kh2 {[%clk 0:01:07]}  Kg7 {[%clk 0:00:03]} 85. Ng1 {[%clk 0:01:07]}  Bxg1+ {[%clk 0:00:03]} 86. Kxg1 {[%clk 0:01:07]}  Kg6 {[%clk 0:00:04]} 87. Kh2 {[%clk 0:01:08]}  Kg5 {[%clk 0:00:05]} 88. Kg1 {[%clk 0:01:09]}  Kf4 {[%clk 0:00:05]} 89. Kh2 {[%clk 0:01:10]}  Kf3 {[%clk 0:00:06]} 90. Kg1 {[%clk 0:01:11]}  Ke2 {[%clk 0:00:06]} 91. Kh2 {[%clk 0:01:11]}  Kf2 {[%clk 0:00:07]} 92. Kh3 {[%clk 0:01:10]}  g1=Q {[%clk 0:00:07]} 93. Kh4 {[%clk 0:01:11]}  Qg6 {[%clk 0:00:07]} 94. Kh3 {[%clk 0:01:10]}  Qg3# {[%clk 0:00:08]} 0-1


[Site "https://www.chess.com"]

[Event "Titled Tuesday Blitz November 14 Early 2023"]
[White "Umarov, Sabir"]
[Black "Yaksin, Oleg"]
[WhiteFideId "14200538"]
[BlackFideId "24105880"]
[WhiteElo "2321"]
[BlackElo "2529"]
[Result "0-1"]
[Round "2"]
[TimeControl "180+1"]
[Date "2023.11.14"]
[WhiteClock "0:00:00"]
[BlackClock "0:00:56"]
[Board "169"]

1. e4 {[%clk 0:02:59]}  c5 {[%clk 0:02:58]} 2. Nc3 {[%clk 0:02:57]}  Nc6 {[%clk 0:02:58]} 3. g3 {[%clk 0:02:57]}  g6 {[%clk 0:02:58]} 4. Bg2 {[%clk 0:02:58]}  Bg7 {[%clk 0:02:59]} 5. Nge2 {[%clk 0:02:59]}  d6 {[%clk 0:02:57]} 6. O-O {[%clk 0:03:00]}  Nf6 {[%clk 0:02:57]} 7. d3 {[%clk 0:03:00]}  O-O {[%clk 0:02:57]} 8. f4 {[%clk 0:03:00]}  Rb8 {[%clk 0:02:56]} 9. h3 {[%clk 0:03:00]}  Nd7 {[%clk 0:02:56]} 10. f5 {[%clk 0:03:00]}  b5 {[%clk 0:02:55]} 11. g4 {[%clk 0:02:59]}  b4 {[%clk 0:02:55]} 12. Nd5 {[%clk 0:02:57]}  e6 {[%clk 0:02:52]} 13. Ne3 {[%clk 0:02:52]}  Nde5 {[%clk 0:02:46]} 14. c3 {[%clk 0:02:36]}  bxc3 {[%clk 0:02:44]} 15. bxc3 {[%clk 0:02:37]}  Ba6 {[%clk 0:02:45]} 16. Nf4 {[%clk 0:02:33]}  Qe7 {[%clk 0:02:14]} 17. Rf2 {[%clk 0:01:07]}  Bf6 {[%clk 0:02:11]} 18. d4 {[%clk 0:01:03]}  cxd4 {[%clk 0:02:08]} 19. cxd4 {[%clk 0:01:03]}  Nxd4 {[%clk 0:02:08]} 20. g5 {[%clk 0:01:03]}  Ndf3+ {[%clk 0:01:36]} 21. Bxf3 {[%clk 0:01:01]}  Nxf3+ {[%clk 0:01:37]} 22. Rxf3 {[%clk 0:00:49]}  Bxa1 {[%clk 0:01:37]} 23. f6 {[%clk 0:00:48]}  Qc7 {[%clk 0:01:29]} 24. Ba3 {[%clk 0:00:34]}  Be5 {[%clk 0:01:20]} 25. Ng4 {[%clk 0:00:31]}  Qb6+ {[%clk 0:01:06]} 26. Kg2 {[%clk 0:00:26]}  Bb7 {[%clk 0:00:59]} 27. Nxe5 {[%clk 0:00:15]}  dxe5 {[%clk 0:01:00]} 28. Bxf8 {[%clk 0:00:15]}  Rxf8 {[%clk 0:01:01]} 29. Nd5 {[%clk 0:00:08]}  exd5 {[%clk 0:01:00]} 30. exd5 {[%clk 0:00:08]}  Qd6 {[%clk 0:01:00]} 31. Rd3 {[%clk 0:00:07]}  Rd8 {[%clk 0:00:59]} 32. Qe1 {[%clk 0:00:06]}  Bxd5+ {[%clk 0:00:58]} 33. Kg1 {[%clk 0:00:04]}  e4 {[%clk 0:00:57]} 34. Rd4 {[%clk 0:00:00]}  Qc5 {[%clk 0:00:56]} 0-1


[Site "https://www.chess.com"]

[Event "Titled Tuesday Blitz November 14 Early 2023"]
[White "Mazzilli, Piero"]
[Black "Postlmayer, Jakob"]
[WhiteFideId "807087"]
[BlackFideId "1643622"]
[WhiteElo "2319"]
[BlackElo "2528"]
[Result "0-1"]
[Round "2"]
[TimeControl "180+1"]
[Date "2023.11.14"]
[WhiteClock "0:00:08"]
[BlackClock "0:01:32"]
[Board "171"]

1. d4 {[%clk 0:03:00]}  Nf6 {[%clk 0:02:52]} 2. Nc3 {[%clk 0:02:59]}  d5 {[%clk 0:02:52]} 3. Bg5 {[%clk 0:02:59]}  c5 {[%clk 0:02:52]} 4. e3 {[%clk 0:02:58]}  Nc6 {[%clk 0:02:51]} 5. Nf3 {[%clk 0:02:58]}  cxd4 {[%clk 0:02:51]} 6. exd4 {[%clk 0:02:57]}  Bg4 {[%clk 0:02:49]} 7. Be2 {[%clk 0:02:57]}  e6 {[%clk 0:02:48]} 8. Ne5 {[%clk 0:02:54]}  Bxe2 {[%clk 0:02:47]} 9. Nxe2 {[%clk 0:02:52]}  Be7 {[%clk 0:02:44]} 10. O-O {[%clk 0:02:38]}  O-O {[%clk 0:02:44]} 11. c3 {[%clk 0:02:36]}  Ne4 {[%clk 0:02:34]} 12. Bxe7 {[%clk 0:02:35]}  Qxe7 {[%clk 0:02:35]} 13. Nxc6 {[%clk 0:02:20]}  bxc6 {[%clk 0:02:35]} 14. Ng3 {[%clk 0:02:21]}  Nd6 {[%clk 0:02:32]} 15. Re1 {[%clk 0:02:15]}  Rab8 {[%clk 0:02:32]} 16. Re2 {[%clk 0:02:14]}  Rfc8 {[%clk 0:02:30]} 17. b4 {[%clk 0:02:12]}  a5 {[%clk 0:02:28]} 18. a3 {[%clk 0:02:12]}  Nc4 {[%clk 0:02:26]} 19. Nf1 {[%clk 0:02:07]}  Ra8 {[%clk 0:02:23]} 20. Ne3 {[%clk 0:02:07]}  Nxe3 {[%clk 0:02:21]} 21. fxe3 {[%clk 0:02:07]}  f5 {[%clk 0:02:16]} 22. Rf2 {[%clk 0:01:55]}  Qg5 {[%clk 0:02:15]} 23. Rf4 {[%clk 0:01:51]}  Ra6 {[%clk 0:02:12]} 24. Qf1 {[%clk 0:01:36]}  Rca8 {[%clk 0:02:10]} 25. Rb1 {[%clk 0:01:34]}  axb4 {[%clk 0:02:10]} 26. axb4 {[%clk 0:01:34]}  Ra2 {[%clk 0:02:10]} 27. Kh1 {[%clk 0:01:28]}  Rc2 {[%clk 0:02:07]} 28. Rc1 {[%clk 0:01:21]}  Raa2 {[%clk 0:02:02]} 29. Rxc2 {[%clk 0:01:15]}  Rxc2 {[%clk 0:02:03]} 30. g4 {[%clk 0:01:07]}  Qh4 {[%clk 0:01:58]} 31. Qg1 {[%clk 0:01:01]}  g5 {[%clk 0:01:56]} 32. gxf5 {[%clk 0:00:41]}  Rxh2+ {[%clk 0:01:49]} 33. Qxh2 {[%clk 0:00:40]}  Qxh2+ {[%clk 0:01:49]} 34. Kxh2 {[%clk 0:00:40]}  gxf4 {[%clk 0:01:50]} 35. fxe6 {[%clk 0:00:31]}  fxe3 {[%clk 0:01:50]} 36. Kg3 {[%clk 0:00:31]}  Kf8 {[%clk 0:01:47]} 37. Kf3 {[%clk 0:00:23]}  Ke7 {[%clk 0:01:47]} 38. Kxe3 {[%clk 0:00:23]}  Kxe6 {[%clk 0:01:47]} 39. Kf4 {[%clk 0:00:23]}  Kf6 {[%clk 0:01:47]} 40. Kg4 {[%clk 0:00:23]}  Kg6 {[%clk 0:01:41]} 41. c4 {[%clk 0:00:14]}  dxc4 {[%clk 0:01:37]} 42. d5 {[%clk 0:00:15]}  c3 {[%clk 0:01:32]} 43. d6 {[%clk 0:00:08]}  Kf6 {[%clk 0:01:32]} 0-1


[Site "https://www.chess.com"]